Workbook

Sheet SliderCrank (2)
B1: Function Generation with 3 precission points
A3: Generate function y=logx within 1<x<2
A4: xin | B4: 1 | D4: yin | E4: =LOG(B4) -> 0
A5: xfin | B5: 2 | D5: yfin | E5: =LOG(B5) -> 0.3010299957
A6: qin | B6: 40
A7: Sin | B7: 50
A8: Dq | B8: 100 | D8: rx | E8: =+B8/(B5-B4) -> 100
A9: Ds | B9: 140 | D9: ry | E9: =+B9/(E5-E4) -> 465.0699333
A11: Use Chebyshev Spacing for the precission points
A13: x1 | B13: =+(B5+B4)/2-(B5-B4)/2*COS(PI()/6) -> 1.066987298 | D13: y1 | E13: =LOG(B13) -> 0.02815924942 | G13: q1 | H13: =+B6+E8*(B13-B4) -> 46.69872981 | I13: s1 | J13: =+B7+E9*(E13-E4) -> 63.09602025
A14: x2 | B14: =+(B5+B4)/2-(B5-B4)/2*COS(PI()/2) -> 1.5 | D14: y2 | E14: =LOG(B14) -> 0.1760912591 | G14: q2 | H14: =+B6+E8*(B14-B4) -> 90 | I14: s2 | J14: =+B7+E9*(E14-E4) -> 131.8947501
A15: x3 | B15: =+(B5+B4)/2-(B5-B4)/2*COS(5*PI()/6) -> 1.933012702 | D15: y3 | E15: =LOG(B15) -> 0.2862347078 | G15: q3 | H15: =+B6+E8*(B15-B4) -> 133.3012702 | I15: s3 | J15: =+B7+E9*(E15-E4) -> 183.1191565
B18: q1 | C18: =+H13 -> 46.69872981 | D18: s1 | E18: =+J13 -> 63.09602025
B19: q2 | C19: =+H14 -> 90 | D19: s2 | E19: =+J14 -> 131.8947501
B20: q3 | C20: =+H15 -> 133.3012702 | D20: s3 | E20: =+J15 -> 183.1191565
B21: Coef. Matrix
B22: =+E18*COS(C18*basic.D_R()) -> 43.27342666 | C22: =+SIN(C18*basic.D_R()) -> 0.7277575536 | D22: =-1 -> -1 | F22: =+E18^2 -> 3981.107771
B23: =+E19*COS(C19*basic.D_R()) -> 8.079532465e-15 | C23: =+SIN(C19*basic.D_R()) -> 1 | D23: =-1 -> -1 | F23: =+E19^2 -> 17396.2251
B24: =+E20*COS(C20*basic.D_R()) -> -125.5894327 | C24: =+SIN(C20*basic.D_R()) -> 0.7277575536 | D24: =-1 -> -1 | F24: =+E20^2 -> 33532.62546
B26: =MINVERSE(B22:D24) -> 0.005921965338 | C26: -3.53603962e-18 | D26: -0.005921965338 | E26: K1 | F26: =MMULT(B26:D28,F22:F24) -> -175.0030635
B27: -2.73188945 | C27: 3.673196495 | D27: -0.941307045 | E27: K2 | F27: 21459.31017 | I27: 10
B28: -2.73188945 | C28: 2.673196495 | D28: -0.941307045 | E28: K3 | F28: 4063.085069 | I28: 20
H29: q | J29: s | L29: =+J30+I28 -> 70.59826496 | M29: =+I27+C32 -> -112.622483 | O29: 0 | P29: 0
B30: a2 | C30: =+F26/2 -> -87.50153173 | H30: 39 | I30: =+H30*PI()/180 -> 0.6806784083 | J30: =SliderCrank(C30,C31,C32,1,I30) -> 50.59826496 | L30: =+L29 -> 70.59826496 | M30: =+M29-2*I27 -> -132.622483 | O30: =+C30*COS(I30) -> -68.00146201 | P30: =+C30*SIN(I30) -> -55.06649817
B31: a3 | C31: =+SQRT(C30^2+C32^2-F28) -> 136.4906822 | L31: =+L30-2*I28 -> 30.59826496 | M31: =+M30 -> -132.622483 | O31: =+J30 -> 50.59826496 | P31: =+C32 -> -122.622483
B32: a1 | C32: =+F27/2/C30 -> -122.622483 | L32: =+L31 -> 30.59826496 | M32: =+M29 -> -112.622483
L33: =+L29 -> 70.59826496 | M33: =+M29 -> -112.622483 | O33: =-50 -> -50 | P33: =+C32 -> -122.622483
B34: 0 | C34: 0 | E34: 0 | F34: 0 | H34: 0 | I34: 0 | O34: 200 | P34: =+P33 -> -122.622483
B35: =+C30*COS(C18*basic.D_R()) -> -60.01156811 | C35: =+C30*SIN(C18*basic.D_R()) -> -63.67990067 | E35: =+C30*COS(C19*basic.D_R()) -> -5.36011832e-15 | F35: =+C30*SIN(C19*basic.D_R()) -> -87.50153173 | H35: =+C30*COS(C20*basic.D_R()) -> 60.01156811 | I35: =+C30*SIN(C20*basic.D_R()) -> -63.67990067
B36: =+E18 -> 63.09602025 | C36: =+C32 -> -122.622483 | E36: =+E19 -> 131.8947501 | F36: =+C32 -> -122.622483 | H36: =+E20 -> 183.1191565 | I36: =+C32 -> -122.622483
B37: =+mag(B36-B35,(C36-C35)) -> 136.4906822 | E37: =+mag(E36-E35,(F36-F35)) -> 136.4906822 | H37: =+mag(H36-H35,(I36-I35)) -> 136.4906822 | I37: check
B39: Analysis
B41: x | C41: y(req) | D41: q | E41: s | F41: y(generated) | H41: error
B42: 1 | C42: =+LOG(B42) -> 0 | D42: =+($B$6+$E$8*(B42-$B$42))*PI()/180 -> 0.6981317008 | E42: =SliderCrank($C$30,$C$31,$C$32,1,D42) -> 52.23318808 | F42: =+(E42-$B$7)/$E$9 -> 0.004801832835 | H42: =+C42-F42 -> -0.004801832835
B43: 1.1 | C43: =+LOG(B43) -> 0.04139268516 | D43: =+($B$6+$E$8*(B43-$B$42))*PI()/180 -> 0.872664626 | E43: =SliderCrank($C$30,$C$31,$C$32,1,D43) -> 68.41138327 | F43: =+(E43-$B$7)/$E$9 -> 0.03958841877 | H43: =+C43-F43 -> 0.001804266392
B44: 1.2 | C44: 0.07918124605 | D44: 1.047197551 | E44: 84.44967174 | F44: 0.07407417525 | H44: 0.005107070802
B45: 1.3 | C45: 0.1139433523 | D45: 1.221730476 | E45: 100.4479905 | F45: 0.1084739882 | H45: 0.005469364115
B46: 1.4 | C46: 0.1461280357 | D46: 1.396263402 | E46: 116.3390968 | F46: 0.1426432716 | H46: 0.003484764053
B47: 1.5 | C47: 0.1760912591 | D47: 1.570796327 | E47: 131.8947501 | F47: 0.1760912591 | H47: 0
B48: 1.6 | C48: 0.2041199827 | D48: 1.745329252 | E48: 146.7280599 | F48: 0.2079860532 | H48: -0.003866070522
B49: 1.7 | C49: 0.2304489214 | D49: 1.919862177 | E49: 160.3025633 | F49: 0.2371741439 | H49: -0.006725222567
B50: 1.8 | C50: 0.2552725051 | D50: 2.094395102 | E50: 171.9512035 | F50: 0.2622212161 | H50: -0.006948710989
B51: 1.9 | C51: 0.278753601 | D51: 2.268928028 | E51: 180.9011841 | F51: 0.2814655921 | H51: -0.002711991124
B52: 2 | C52: 0.3010299957 | D52: 2.443460953 | E52: 186.2933124 | F52: 0.2930598231 | H52: 0.00797017257

Sheet Function Generation
B1: Function Generation with 3 precission points
A3: Generate function y=logx within 1<x<2
A4: xin | B4: 1 | D4: yin | E4: =LOG(B4) -> 0
A5: xfin | B5: 2 | D5: yfin | E5: =LOG(B5) -> 0.3010299957
A6: qin | B6: 10
A7: fin | B7: 24
A8: Dq | B8: 133 | D8: rx | E8: =+B8/(B5-B4) -> 133
A9: Df | B9: 78 | D9: ry | E9: =+B9/(E5-E4) -> 259.1103914
A11: Use Chebyshev Spacing for the precission points
A13: x1 | B13: =+(B5+B4)/2-(B5-B4)/2*COS(PI()/6) -> 1.066987298 | D13: y1 | E13: =LOG(B13) -> 0.02815924942 | G13: q1 | H13: =+B6+E8*(B13-B4) -> 18.90931065 | I13: f1 | J13: =+B7+E9*(E13-E4) -> 31.29635414
A14: x2 | B14: =+(B5+B4)/2-(B5-B4)/2*COS(PI()/2) -> 1.5 | D14: y2 | E14: =LOG(B14) -> 0.1760912591 | G14: q2 | H14: =+B6+E8*(B14-B4) -> 76.5 | I14: f2 | J14: =+B7+E9*(E14-E4) -> 69.62707506
A15: x3 | B15: =+(B5+B4)/2-(B5-B4)/2*COS(5*PI()/6) -> 1.933012702 | D15: y3 | E15: =LOG(B15) -> 0.2862347078 | G15: q3 | H15: =+B6+E8*(B15-B4) -> 134.0906894 | I15: f3 | J15: =+B7+E9*(E15-E4) -> 98.16638717
F16: 10
B18: q1 | C18: =+H13 -> 18.90931065 | D18: f1 | E18: =+J13 -> 31.29635414 | H18: 0.5
B19: q2 | C19: =+H14 -> 76.5 | D19: f2 | E19: =+J14 -> 69.62707506 | H19: 63 | I19: 0 | J19: 0
B20: q3 | C20: =+H15 -> 134.0906894 | D20: f3 | E20: =+J15 -> 98.16638717 | H20: =FourBar(C32,C33,C34,C31,1,H19*PI()/180) -> 1.0522308 | I20: =+C32*COS(H19*PI()/180) -> -0.3786219183 | J20: =+C32*SIN(H19*PI()/180) -> -0.7430873544
B21: Coef. Matrix | I21: =+C31+C34*COS(H20) -> 0.4024645764 | J21: =+C34*SIN(H20) -> -1.047097794
B22: =+COS(E18*PI()/180) -> 0.8544918866 | C22: =-COS(C18*PI()/180) -> -0.9460327093 | D22: 1 | F22: =+COS((E18-C18)*PI()/180) -> 0.9767208123 | I22: =+C31 -> 1 | J22: 0
B23: =+COS(E19*PI()/180) -> 0.3481290969 | C23: =-COS(C19*PI()/180) -> -0.2334453639 | D23: 1 | F23: =+COS((E19-C19)*PI()/180) -> 0.9928140016
B24: =+COS(E20*PI()/180) -> -0.1420482525 | C24: =-COS(C20*PI()/180) -> 0.6957960908 | D24: 1 | F24: =+COS((E20-C20)*PI()/180) -> 0.809792856
B26: Inverse Matrix
B27: =MINVERSE(B22:D24) -> 7.664534856 | C27: -13.54207133 | D27: 5.877536478 | E27: K1 | F27: =MMULT(B27:D29,F22:F24) -> -1.199060271
B28: 4.043062608 | C28: -8.219625365 | D28: 4.176562757 | E28: K2 | F28: -0.8294650727
B29: -1.724413376 | C29: 3.795555629 | D29: -1.071142254 | E29: K3 | F29: 1.216606995
B31: a1 | C31: 1
B32: a2 | C32: =+C31/F27 -> -0.8339864347
B33: a3 | C33: =+SQRT(C31^2+C32^2+C34^2-2*F29*C32*C34) -> 0.8381637427
B34: a4 | C34: =+C31/F28 -> -1.205596273
B36: 0 | C36: 0 | E36: 0 | F36: 0 | H36: 0 | I36: 0 | M36: =+SQRT(C31^2+C32^2+2*C32*C31*COS(D42)) -> 1.827064856
B37: =+C32*COS(C18*PI()/180) -> -0.7889784463 | C37: =+C32*SIN(C18*PI()/180) -> -0.2702709465 | E37: =+C32*COS(C19*PI()/180) -> -0.1946902667 | F37: =+C32*SIN(C19*PI()/180) -> -0.8109433231 | H37: =+C32*COS(C20*PI()/180) -> 0.580284501 | I37: =+C32*SIN(C20*PI()/180) -> -0.5990018957 | M37: =+AngCos(C33,-C34,M36) -> 2.195624689
B38: =+C31+C34*COS(E18*PI()/180) -> -0.0301722335 | C38: =+C34*SIN(E18*PI()/180) -> -0.6262647539 | E38: =+C31+C34*COS(E19*PI()/180) -> 0.5802968584 | F38: =+C34*SIN(E19*PI()/180) -> -1.130182129 | H38: =+C31+C34*COS(E20*PI()/180) -> 1.171252844 | I38: =+C34*SIN(E20*PI()/180) -> -1.193371206 | M38: =+M37*180/PI() -> 125.8000281
B39: =+C31 -> 1 | C39: 0 | E39: =+C31 -> 1 | F39: 0 | H39: =+C31 -> 1 | I39: 0 | M39: =+M38-90 -> 35.8000281 | N39: Worst TA
B41: x | C41: y(req) | D41: q | E41: f | G41: y (realized) | I41: error
B42: 1 | C42: =+LOG(B42) -> 0 | D42: =+($B$6+$E$8*(B42-$B$42)+180)*PI()/180 -> 3.316125579 | E42: =FourBar(ABS($C$32),$C$33,ABS($C$34),$C$31,-1,D42) -> 3.602182625 | F42: =+E42*180/PI()-180 -> 26.38986144 | G42: =+(F42-$B$7)/$E$9 -> 0.00922333308 | I42: =+C42-G42 -> -0.00922333308 | J42: =+D42*180/PI() -> 190 | L42: =+D42*180/PI() -> 190
B43: 1.1 | C43: =+LOG(B43) -> 0.04139268516 | D43: =+($B$6+$E$8*(B43-$B$42)+180)*PI()/180 -> 3.548254369 | E43: =FourBar(ABS($C$32),$C$33,ABS($C$34),$C$31,-1,D43) -> 3.73295885 | F43: =+E43*180/PI()-180 -> 33.88278721 | G43: =+(F43-$B$7)/$E$9 -> 0.03814122295 | I43: =+C43-G43 -> 0.003251462208 | J43: =+D43*180/PI() -> 203.3
B44: 1.2 | C44: 0.07918124605 | D44: 3.78038316 | E44: 3.879206408 | F44: 42.26215503 | G44: 0.0704802109 | I44: 0.008701035152 | J44: 216.6
B45: 1.3 | C45: 0.1139433523 | D45: 4.01251195 | E45: 4.035403141 | F45: 51.21156862 | G45: 0.1050192101 | I45: 0.008924142246 | J45: 229.9
B46: 1.4 | C46: 0.1461280357 | D46: 4.244640741 | E46: 4.196252393 | F46: 60.42755188 | G46: 0.1405869972 | I46: 0.005541038445 | J46: 243.2
B47: 1.5 | C47: 0.1760912591 | D47: 4.476769531 | E47: 4.356814362 | F47: 69.62707506 | G47: 0.1760912591 | I47: 0 | J47: 256.5
B48: 1.6 | C48: 0.2041199827 | D48: 4.708898322 | E48: 4.511846121 | F48: 78.50974055 | G48: 0.2103726534 | I48: -0.006252670712 | J48: 269.8
B49: 1.7 | C49: 0.2304489214 | D49: 4.941027112 | E49: 4.65449687 | F49: 86.68302639 | G49: 0.241916297 | I49: -0.01146737559 | J49: 283.1
B50: 1.8 | C50: 0.2552725051 | D50: 5.173155903 | E50: 4.773706854 | F50: 93.51325534 | G50: 0.268276602 | I50: -0.01300409686 | J50: 296.4
B51: 1.9 | C51: 0.278753601 | D51: 5.405284693 | E51: 4.847719409 | F51: 97.75386242 | G51: 0.2846426267 | I51: -0.005889025781 | J51: 309.7
B52: 2 | C52: 0.3010299957 | D52: 5.637413484 | E52: 4.822503241 | F52: 96.30908241 | G52: 0.2790667021 | I52: 0.02196329357 | J52: 323

Sheet SliderCrank_3P
B1: Function Generation with 3 precission points
A3: Generate function y=logx within 1<x<2
A4: xin | B4: 1 | D4: yin | E4: =LOG(B4) -> 0
A5: xfin | B5: 2 | D5: yfin | E5: =LOG(B5) -> 0.3010299957
A6: qin | B6: 45
A7: Sin | B7: =C7-250 -> -6 | C7: 244
A8: Dq | B8: 100 | D8: rx | E8: =+B8/(B5-B4) -> 100
A9: Ds | B9: 140 | D9: ry | E9: =+B9/(E5-E4) -> 465.0699333
A11: Use Chebyshev Spacing for the precission points
A13: x1 | B13: =+(B5+B4)/2-(B5-B4)/2*COS(PI()/8) -> 1.038060234 | D13: y1 | E13: =LOG(B13) -> 0.01622255431 | G13: q1 | H13: =+$B$6+$E$8*(B13-$B$4) -> 48.80602337 | I13: s1 | J13: =+$B$7+$E$9*(E13-$E$4) -> 1.544622249
A14: x2 | B14: =+(B5+B4)/2-(B5-B4)/2*COS(3*PI()/8) -> 1.308658284 | D14: y2 | E14: =LOG(B14) -> 0.1168262586 | G14: q2 | H14: =+$B$6+$E$8*(B14-$B$4) -> 75.86582838 | I14: s2 | J14: =+$B$7+$E$9*(E14-$E$4) -> 48.33238029
A15: x3 | B15: =+(B5+B4)/2-(B5-B4)/2*COS(5*PI()/8) -> 1.691341716 | D15: y3 | E15: =LOG(B15) -> 0.2282313607 | G15: q3 | H15: 114.1341716 | I15: s3 | J15: 100.1435437
A16: x4 | B16: =+(B5+B4)/2-(B5-B4)/2*COS(7*PI()/8) -> 1.961939766 | D16: y4 | E16: =LOG(B16) -> 0.2926856699 | G16: q4 | H16: 141.1939766 | I16: s4 | J16: 130.119305
B18: q1 | C18: =+H13 -> 48.80602337 | D18: s1 | E18: =+J13 -> 1.544622249
B19: q2 | C19: =+H14 -> 75.86582838 | D19: s2 | E19: =+J14 -> 48.33238029 | G19: =MDETERM(B25:E28) -> -24669.16659
B20: q3 | C20: =+H15 -> 114.1341716 | D20: s3 | E20: =+J15 -> 100.1435437 | G20: For this case there is no solution for 4 positions
B21: q4 | C21: =+H16 -> 141.1939766 | D21: s4 | E21: =+J16 -> 130.119305
B23: Coef. Matrix
B25: =+E18*COS(C18*basic.D_R()) -> 1.01730421 | C25: =+SIN(C18*basic.D_R()) -> 0.7524841513 | D25: =-1 -> -1 | E25: =+E18^2 -> 2.385857892
B26: =+E19*COS(C19*basic.D_R()) -> 11.80244862 | C26: =+SIN(C19*basic.D_R()) -> 0.969726549 | D26: =-1 -> -1 | E26: =+E19^2 -> 2336.018985
B27: =+E20*COS(C20*basic.D_R()) -> -40.94617226 | C27: =+SIN(C20*basic.D_R()) -> 0.9125904837 | D27: =-1 -> -1 | E27: =+E20^2 -> 10028.72934
B28: =+E21*COS(C21*basic.D_R()) -> -101.3983424 | C28: =+SIN(C21*basic.D_R()) -> 0.6266857379 | D28: =-1 -> -1 | E28: =+E21^2 -> 16931.03353
B30: =MINVERSE(B25:D27) -> 0.005269388566 | C30: 0.01476584836 | D30: -0.02003523692 | E30: K1 | F30: =MMULT(B30:D32,E25:E27) -> -166.4220943
B31: -4.864755349 | C31: 3.870092587 | D31: 0.9946627622 | E31: K2 | F31: 19004.20677 | I31: 10
B32: -4.655290729 | C32: 2.927204695 | D32: 0.7280860335 | E32: K3 | F32: 14128.67665 | I32: 20
H33: q | J33: s | L33: =+J34+I32 -> 31.40776298 | M33: =+I31+C36 -> -104.1928111 | O33: 0 | P33: 0
B34: a2 | C34: =+F30/2 -> -83.21104714 | H34: 54 | I34: =+H34*PI()/180 -> 0.9424777961 | J34: =SliderCrank(C34,C35,C36,1,I34) -> 11.40776298 | L34: =+L33 -> 31.40776298 | M34: =+M33-2*I31 -> -124.1928111 | O34: =+C34*COS(I34) -> -48.91022634 | P34: =+C34*SIN(I34) -> -67.31915126
B35: a3 | C35: =+SQRT(C34^2+C36^2-F32) -> 76.38978871 | L35: =+L34-2*I32 -> -8.59223702 | M35: =+M34 -> -124.1928111 | O35: =+J34 -> 11.40776298 | P35: =+C36 -> -114.1928111
B36: a1 | C36: =+F31/2/C34 -> -114.1928111 | L36: =+L35 -> -8.59223702 | M36: =+M33 -> -104.1928111
L37: =+L33 -> 31.40776298 | M37: =+M33 -> -104.1928111 | O37: =-50 -> -50 | P37: =+C36 -> -114.1928111
B38: 0 | C38: 0 | E38: 0 | F38: 0 | H38: 0 | I38: 0 | O38: 200 | P38: =+P37 -> -114.1928111
B39: =+C34*COS(C18*basic.D_R()) -> -54.80365745 | C39: =+C34*SIN(C18*basic.D_R()) -> -62.61499418 | E39: =+C34*COS(C19*basic.D_R()) -> -20.31958911 | F39: =+C34*SIN(C19*basic.D_R()) -> -80.69196159 | H39: =+C34*COS(C20*basic.D_R()) -> 34.02290098 | I39: =+C34*SIN(C20*basic.D_R()) -> -75.93760976
B40: =+E18 -> 1.544622249 | C40: =+C36 -> -114.1928111 | E40: =+E19 -> 48.33238029 | F40: =+C36 -> -114.1928111 | H40: =+E20 -> 100.1435437 | I40: =+C36 -> -114.1928111
B41: =+mag(B40-B39,(C40-C39)) -> 76.38978871 | E41: =+mag(E40-E39,(F40-F39)) -> 76.38978871 | H41: =+mag(H40-H39,(I40-I39)) -> 76.38978871 | I41: check
B43: Analysis
B45: x | C45: y(req) | D45: q | E45: s | F45: y(generated) | H45: error
B46: 1 | C46: =+LOG(B46) -> 0 | D46: =+($B$6+$E$8*(B46-$B$46))*PI()/180 -> 0.7853981634 | E46: =SliderCrank($C$34,$C$35,$C$36,1,D46) -> -6.195330499 | F46: =+(E46-$B$7)/$E$9 -> -0.0004200024233 | H46: =+C46-F46 -> 0.0004200024233
B47: 1.1 | C47: =+LOG(B47) -> 0.04139268516 | D47: =+($B$6+$E$8*(B47-$B$46))*PI()/180 -> 0.9599310886 | E47: =SliderCrank($C$34,$C$35,$C$36,1,D47) -> 13.23611173 | F47: =+(E47-$B$7)/$E$9 -> 0.04136176165 | H47: =+C47-F47 -> 3.09235057e-05
B48: 1.2 | C48: 0.07918124605 | D48: 1.134464014 | E48: 30.64889456 | F48: 0.0788029755 | H48: 0.0003782705443
B49: 1.3 | C49: 0.1139433523 | D49: 1.308996939 | E49: 46.9601318 | F49: 0.1138756303 | H49: 6.772198808e-05
B50: 1.4 | C50: 0.1461280357 | D50: 1.483529864 | E50: 62.4313183 | F50: 0.1471419961 | H50: -0.001013960406
B51: 1.5 | C51: 0.1760912591 | D51: 1.658062789 | E51: 76.93595954 | F51: 0.1783300824 | H51: -0.002238823377
B52: 1.6 | C52: 0.2041199827 | D52: 1.832595715 | E52: 90.03333932 | F52: 0.2064922551 | H52: -0.002372272484
B53: 1.7 | C53: 0.2304489214 | D53: 2.00712864 | E53: 100.9819108 | F53: 0.2300340295 | H53: 0.0004148918584
B54: 1.8 | C54: 0.2552725051 | D54: 2.181661565 | E54: 108.6919035 | F54: 0.2466121658 | H54: 0.008660339289
B55: 1.9 | C55: 0.278753601 | D55: 2.35619449 | E55: 111.4828609 | F55: 0.2526133222 | H55: 0.02614027874
B56: 2 | C56: 0.3010299957 | D56: 2.530727415 | E56: 105.8163819 | F56: 0.2404291783 | H56: 0.06060081738
